[Event "*** SCC Grand Prix: Titled Tuesday Blitz"]
[Site "Chess.com"]
[Date "2020.08.25"]
[Round "3"]
[White "el-roedor"]
[Black "ChessWarrior7197"]
[Result "0-1"]
[WhiteElo "2640"]
[BlackElo "2914"]
[TimeControl "180+1"]
[EndTime "10:28:52 PDT"]
[Termination "ChessWarrior7197 won by resignation"]

1. d4 {[%clk 0:03:00.9]} 1... d5 {[%clk 0:02:59.7]} 2. c4 {[%clk 0:03:00.7]}
2... e6 {[%clk 0:03:00]} 3. Nc3 {[%clk 0:03:00.4]} 3... c5 {[%clk 0:03:00.4]} 4.
cxd5 {[%clk 0:02:59.1]} 4... exd5 {[%clk 0:03:01.3]} 5. Nf3 {[%clk 0:02:58.6]}
5... Nc6 {[%clk 0:03:01.8]} 6. g3 {[%clk 0:02:58.2]} 6... Nf6 {[%clk 0:03:00.6]}
7. Bg2 {[%clk 0:02:56.5]} 7... cxd4 {[%clk 0:03:01.5]} 8. Nxd4 {[%clk
0:02:56.1]} 8... Bc5 {[%clk 0:03:01.9]} 9. Nxc6 {[%clk 0:02:56.2]} 9... bxc6
{[%clk 0:03:02.8]} 10. O-O {[%clk 0:02:55.9]} 10... O-O {[%clk 0:03:03.1]} 11.
b3 {[%clk 0:02:53]} 11... Ba6 {[%clk 0:03:03]} 12. Na4 {[%clk 0:02:48.9]} 12...
Bb6 {[%clk 0:02:58.9]} 13. Re1 {[%clk 0:02:38.3]} 13... Re8 {[%clk 0:02:58.5]}
14. Bb2 {[%clk 0:02:23]} 14... Bb5 {[%clk 0:02:56.7]} 15. Nxb6 {[%clk
0:02:19.4]} 15... axb6 {[%clk 0:02:57.6]} 16. a4 {[%clk 0:02:14.5]} 16... Ba6
{[%clk 0:02:56.9]} 17. Rc1 {[%clk 0:02:06.5]} 17... Rc8 {[%clk 0:02:56.2]} 18.
Bd4 {[%clk 0:01:51.2]} 18... Ne4 {[%clk 0:02:52.4]} 19. Bxe4 {[%clk 0:01:24.1]}
19... Rxe4 {[%clk 0:02:43.1]} 20. Qd2 {[%clk 0:01:23.2]} 20... c5 {[%clk
0:02:41.5]} 21. Bb2 {[%clk 0:01:16.3]} 21... d4 {[%clk 0:02:41.5]} 22. e3 {[%clk
0:01:05]} 22... Qd5 {[%clk 0:02:39.8]} 23. f3 {[%clk 0:00:48.6]} 23... Ree8
{[%clk 0:02:37.5]} 24. exd4 {[%clk 0:00:43.3]} 24... Qxf3 {[%clk 0:02:36.5]} 25.
Qc3 {[%clk 0:00:25.2]} 25... Bd3 {[%clk 0:01:39.6]} 26. dxc5 {[%clk 0:00:13.2]}
26... f6 {[%clk 0:01:39.5]} 27. Rf1 {[%clk 0:00:12.7]} 27... Qe3+ {[%clk
0:01:34.7]} 28. Rf2 {[%clk 0:00:12.9]} 28... Rxc5 {[%clk 0:01:34.9]} 29. Qd2
{[%clk 0:00:12.7]} 29... Rxc1+ {[%clk 0:01:29.2]} 30. Qxc1 {[%clk 0:00:12.7]}
30... Qxc1+ {[%clk 0:01:28.7]} 31. Bxc1 {[%clk 0:00:11.9]} 31... Re1+ {[%clk
0:01:29.6]} 32. Kg2 {[%clk 0:00:12.6]} 32... Rxc1 {[%clk 0:01:29.3]} 33. Rd2
{[%clk 0:00:13.2]} 33... Rc2 {[%clk 0:01:28.6]} 34. Rxc2 {[%clk 0:00:13.2]}
34... Bxc2 {[%clk 0:01:29.5]} 0-1

[Event "*** SCC Grand Prix: Titled Tuesday Blitz"]
[Site "Chess.com"]
[Date "2020.08.25"]
[Round "3"]
[White "Synctel"]
[Black "Shushik"]
[Result "0-1"]
[WhiteElo "1963"]
[BlackElo "2269"]
[TimeControl "180+1"]
[EndTime "10:28:57 PDT"]
[Termination "Shushik won on time"]

1. e4 {[%clk 0:03:00.9]} 1... e5 {[%clk 0:02:59.8]} 2. Nf3 {[%clk 0:02:59.5]}
2... Nc6 {[%clk 0:03:00.1]} 3. d4 {[%clk 0:02:56.5]} 3... exd4 {[%clk
0:02:59.2]} 4. Nxd4 {[%clk 0:02:56.8]} 4... Bc5 {[%clk 0:02:59.2]} 5. Be3 {[%clk
0:02:55.7]} 5... Qf6 {[%clk 0:02:58.6]} 6. c3 {[%clk 0:02:56.2]} 6... Qg6 {[%clk
0:02:58.3]} 7. Nd2 {[%clk 0:02:41]} 7... d6 {[%clk 0:02:47.8]} 8. Bc4 {[%clk
0:02:37]} 8... Qxg2 {[%clk 0:02:36.9]} 9. Qh5 {[%clk 0:01:40.5]} 9... g6 {[%clk
0:02:16.7]} 10. Bxf7+ {[%clk 0:01:21.9]} 10... Kxf7 {[%clk 0:02:14.6]} 11. Qd5+
{[%clk 0:01:21.9]} 11... Kf8 {[%clk 0:02:09.9]} 12. O-O-O {[%clk 0:01:21.3]}
12... Bxd4 {[%clk 0:01:57]} 13. cxd4 {[%clk 0:01:13.9]} 13... Qg4 {[%clk
0:01:51.9]} 14. e5 {[%clk 0:00:48.3]} 14... Qe6 {[%clk 0:01:35.5]} 15. Qf3+
{[%clk 0:00:47.4]} 15... Qf7 {[%clk 0:01:34.9]} 16. Qg3 {[%clk 0:00:40.2]} 16...
Bf5 {[%clk 0:01:27.6]} 17. Nb3 {[%clk 0:00:26.3]} 17... dxe5 {[%clk 0:01:11.8]}
18. dxe5 {[%clk 0:00:14]} 18... Qc4+ {[%clk 0:01:09.8]} 19. Kd2 {[%clk
0:00:08.8]} 19... Rd8+ {[%clk 0:01:09]} 20. Ke1 {[%clk 0:00:09]} 20... Rxd1+
{[%clk 0:01:05.6]} 21. Kxd1 {[%clk 0:00:09.4]} 21... Qd5+ {[%clk 0:01:03.1]} 0-1

[Event "*** SCC Grand Prix: Titled Tuesday Blitz"]
[Site "Chess.com"]
[Date "2020.08.25"]
[Round "3"]
[White "Evandro_Barbosa"]
[Black "Xeniya2005"]
[Result "1-0"]
[WhiteElo "2552"]
[BlackElo "2353"]
[TimeControl "180+1"]
[EndTime "10:28:58 PDT"]
[Termination "Evandro_Barbosa won by resignation"]

1. e4 {[%clk 0:03:00.9]} 1... e6 {[%clk 0:03:00.3]} 2. d4 {[%clk 0:02:59.9]}
2... d5 {[%clk 0:03:00.8]} 3. Nc3 {[%clk 0:02:59.8]} 3... Bb4 {[%clk 0:03:00]}
4. a3 {[%clk 0:02:57.9]} 4... Bxc3+ {[%clk 0:02:59.3]} 5. bxc3 {[%clk
0:02:58.8]} 5... c5 {[%clk 0:02:54.1]} 6. exd5 {[%clk 0:02:54.8]} 6... Qxd5
{[%clk 0:02:47.5]} 7. Nf3 {[%clk 0:02:53.4]} 7... cxd4 {[%clk 0:02:46.2]} 8.
cxd4 {[%clk 0:02:51.4]} 8... Nc6 {[%clk 0:02:44.2]} 9. Bd3 {[%clk 0:02:47.1]}
9... Nf6 {[%clk 0:02:40.1]} 10. O-O {[%clk 0:02:45.8]} 10... h6 {[%clk
0:02:36.6]} 11. c4 {[%clk 0:02:45.1]} 11... Qd8 {[%clk 0:02:33.4]} 12. Bb2
{[%clk 0:01:58.8]} 12... O-O {[%clk 0:02:22.4]} 13. Qe2 {[%clk 0:01:59.2]} 13...
b6 {[%clk 0:02:18.1]} 14. Rfd1 {[%clk 0:01:34.2]} 14... Bb7 {[%clk 0:02:12.9]}
15. Rac1 {[%clk 0:01:14.3]} 15... Rc8 {[%clk 0:02:08.3]} 16. d5 {[%clk
0:01:04.9]} 16... exd5 {[%clk 0:02:04.4]} 17. cxd5 {[%clk 0:01:04.3]} 17... Na5
{[%clk 0:02:00.1]} 18. Rxc8 {[%clk 0:01:01.7]} 18... Bxc8 {[%clk 0:01:57.7]} 19.
d6 {[%clk 0:00:56.5]} 19... Bb7 {[%clk 0:01:49.1]} 20. Ne5 {[%clk 0:00:55]}
20... Re8 {[%clk 0:01:43.5]} 21. Bb5 {[%clk 0:00:45.7]} 21... Re6 {[%clk
0:01:18.9]} 22. d7 {[%clk 0:00:38.8]} 22... a6 {[%clk 0:01:01.3]} 23. Bxa6
{[%clk 0:00:36.5]} 23... Bxa6 {[%clk 0:00:55.9]} 24. Qxa6 {[%clk 0:00:37.4]}
24... Kf8 {[%clk 0:00:49.2]} 25. Qc8 {[%clk 0:00:35]} 25... Ke7 {[%clk
0:00:48.2]} 26. Qxd8+ {[%clk 0:00:28.7]} 26... Kxd8 {[%clk 0:00:47.3]} 27. Nxf7+
{[%clk 0:00:28.6]} 1-0

[Event "*** SCC Grand Prix: Titled Tuesday Blitz"]
[Site "Chess.com"]
[Date "2020.08.25"]
[Round "3"]
[White "VMikhalevski"]
[Black "guillembaches"]
[Result "1-0"]
[WhiteElo "2725"]
[BlackElo "2420"]
[TimeControl "180+1"]
[EndTime "10:29:01 PDT"]
[Termination "VMikhalevski won on time"]

1. Nf3 {[%clk 0:03:00.9]} 1... d5 {[%clk 0:02:59.3]} 2. g3 {[%clk 0:03:00.5]}
2... g6 {[%clk 0:02:59.2]} 3. Bg2 {[%clk 0:03:00.2]} 3... Bg7 {[%clk 0:02:59.3]}
4. d4 {[%clk 0:03:00.2]} 4... Nd7 {[%clk 0:02:58.5]} 5. O-O {[%clk 0:02:56.8]}
5... Ngf6 {[%clk 0:02:56.5]} 6. b3 {[%clk 0:02:51.4]} 6... O-O {[%clk
0:02:54.8]} 7. Bb2 {[%clk 0:02:48.5]} 7... a5 {[%clk 0:02:47.8]} 8. c4 {[%clk
0:02:41.2]} 8... e6 {[%clk 0:02:41.2]} 9. Nc3 {[%clk 0:02:36.8]} 9... c5 {[%clk
0:02:35]} 10. cxd5 {[%clk 0:02:31.7]} 10... exd5 {[%clk 0:02:30.9]} 11. dxc5
{[%clk 0:02:21]} 11... Nxc5 {[%clk 0:02:30.1]} 12. Nd4 {[%clk 0:02:18.5]} 12...
Re8 {[%clk 0:02:24.9]} 13. Rc1 {[%clk 0:02:17.1]} 13... Nce4 {[%clk 0:02:19.9]}
14. Ncb5 {[%clk 0:02:14.5]} 14... Re7 {[%clk 0:02:04.7]} 15. Ba3 {[%clk
0:02:13.3]} 15... Rd7 {[%clk 0:01:41.3]} 16. Qc2 {[%clk 0:02:06.4]} 16... h5
{[%clk 0:01:30.9]} 17. e3 {[%clk 0:01:41.8]} 17... h4 {[%clk 0:01:29.3]} 18. Qe2
{[%clk 0:01:34.1]} 18... Qb6 {[%clk 0:01:20.7]} 19. gxh4 {[%clk 0:01:30]} 19...
Rd8 {[%clk 0:01:10.3]} 20. f3 {[%clk 0:01:28.3]} 20... Bd7 {[%clk 0:00:49.5]}
21. fxe4 {[%clk 0:01:25]} 21... Nxe4 {[%clk 0:00:49.8]} 22. Nc7 {[%clk
0:01:13.5]} 22... Bxd4 {[%clk 0:00:40.3]} 23. Nxd5 {[%clk 0:00:59.8]} 1-0

[Event "*** SCC Grand Prix: Titled Tuesday Blitz"]
[Site "Chess.com"]
[Date "2020.08.25"]
[Round "3"]
[White "TST2014"]
[Black "reutik"]
[Result "1-0"]
[WhiteElo "2503"]
[BlackElo "2265"]
[TimeControl "180+1"]
[EndTime "10:29:02 PDT"]
[Termination "TST2014 won by resignation"]

1. d4 {[%clk 0:03:00.9]} 1... Nf6 {[%clk 0:02:59.9]} 2. c4 {[%clk 0:03:00.1]}
2... e6 {[%clk 0:03:00.3]} 3. Nf3 {[%clk 0:02:59.8]} 3... b6 {[%clk 0:03:00.1]}
4. a3 {[%clk 0:02:59.4]} 4... Bb7 {[%clk 0:02:58.8]} 5. Nc3 {[%clk 0:02:59.1]}
5... Bxf3 {[%clk 0:02:54.7]} 6. exf3 {[%clk 0:02:52.8]} 6... c6 {[%clk
0:02:50.1]} 7. d5 {[%clk 0:02:52.2]} 7... Bd6 {[%clk 0:02:25.3]} 8. Bd3 {[%clk
0:02:43.9]} 8... Na6 {[%clk 0:01:53]} 9. O-O {[%clk 0:02:36.2]} 9... Nc5 {[%clk
0:01:49.9]} 10. Bc2 {[%clk 0:02:32.6]} 10... a5 {[%clk 0:01:48.8]} 11. Bg5
{[%clk 0:02:28.6]} 11... Be5 {[%clk 0:01:47.5]} 12. Qd2 {[%clk 0:02:19]} 12...
h6 {[%clk 0:01:43.3]} 13. Bh4 {[%clk 0:02:18.5]} 13... a4 {[%clk 0:01:41.5]} 14.
Rfe1 {[%clk 0:02:12.1]} 14... Bxc3 {[%clk 0:01:35.9]} 15. Qxc3 {[%clk
0:02:09.5]} 15... cxd5 {[%clk 0:01:22.2]} 16. cxd5 {[%clk 0:02:06.7]} 16... O-O
{[%clk 0:01:21.8]} 17. Rad1 {[%clk 0:01:57.9]} 17... Nxd5 {[%clk 0:01:19]} 18.
Qc4 {[%clk 0:01:47.2]} 18... Nf6 {[%clk 0:01:14.9]} 19. Rd6 {[%clk 0:01:32.6]}
19... Nb7 {[%clk 0:01:11.1]} 20. Qd3 {[%clk 0:01:24.7]} 20... g5 {[%clk
0:01:10]} 21. Bg3 {[%clk 0:01:22.9]} 21... Nc5 {[%clk 0:01:01.2]} 22. Qd4 {[%clk
0:01:18]} 22... Ne8 {[%clk 0:00:58.2]} 23. h4 {[%clk 0:01:03.6]} 23... Ra5
{[%clk 0:00:34.6]} 24. hxg5 {[%clk 0:01:01.5]} 24... hxg5 {[%clk 0:00:27.2]} 25.
Qg4 {[%clk 0:00:59.7]} 25... f5 {[%clk 0:00:23.2]} 26. Qh5 {[%clk 0:00:58.8]}
26... Nxd6 {[%clk 0:00:20]} 27. Qg6+ {[%clk 0:00:58.1]} 27... Kh8 {[%clk
0:00:17.1]} 28. Be5+ {[%clk 0:00:58.6]} 1-0

[Event "*** SCC Grand Prix: Titled Tuesday Blitz"]
[Site "Chess.com"]
[Date "2020.08.25"]
[Round "3"]
[White "eightbyeightchess"]
[Black "Saxar85"]
[Result "1/2-1/2"]
[WhiteElo "2438"]
[BlackElo "2765"]
[TimeControl "180+1"]
[EndTime "10:29:05 PDT"]
[Termination "Game drawn by repetition"]

1. e4 {[%clk 0:03:00.9]} 1... e5 {[%clk 0:02:12.9]} 2. Nf3 {[%clk 0:03:00.5]}
2... Nc6 {[%clk 0:02:12.3]} 3. Bb5 {[%clk 0:03:01.1]} 3... a6 {[%clk 0:02:12]}
4. Ba4 {[%clk 0:03:01]} 4... Nf6 {[%clk 0:02:11.7]} 5. d4 {[%clk 0:03:01.4]}
5... exd4 {[%clk 0:02:08.3]} 6. O-O {[%clk 0:03:01.5]} 6... Be7 {[%clk
0:02:06.5]} 7. Re1 {[%clk 0:03:01.6]} 7... b5 {[%clk 0:02:03.4]} 8. Bb3 {[%clk
0:03:01.6]} 8... d6 {[%clk 0:02:01.7]} 9. Bd5 {[%clk 0:03:02.1]} 9... Nxd5
{[%clk 0:02:00.7]} 10. exd5 {[%clk 0:03:03]} 10... Ne5 {[%clk 0:02:00.5]} 11.
Nxd4 {[%clk 0:03:03]} 11... O-O {[%clk 0:01:58.1]} 12. a4 {[%clk 0:03:03.3]}
12... Bg4 {[%clk 0:01:55]} 13. f3 {[%clk 0:03:03]} 13... Bd7 {[%clk 0:01:54.5]}
14. Nc3 {[%clk 0:03:02.3]} 14... b4 {[%clk 0:01:52.8]} 15. Ne4 {[%clk
0:03:02.6]} 15... Re8 {[%clk 0:01:48.8]} 16. b3 {[%clk 0:03:01.1]} 16... Qb8
{[%clk 0:01:47.5]} 17. Bb2 {[%clk 0:03:00.9]} 17... Qb7 {[%clk 0:01:47]} 18. f4
{[%clk 0:02:49.8]} 18... Ng4 {[%clk 0:01:40]} 19. Nf3 {[%clk 0:02:36.2]} 19...
f5 {[%clk 0:01:21.6]} 20. Ng3 {[%clk 0:01:44.5]} 20... Bf6 {[%clk 0:01:18]} 21.
Bxf6 {[%clk 0:01:33.3]} 21... Nxf6 {[%clk 0:01:17.5]} 22. Rxe8+ {[%clk
0:01:25.5]} 22... Rxe8 {[%clk 0:01:16.4]} 23. Nd4 {[%clk 0:01:26.2]} 23... g6
{[%clk 0:01:03]} 24. Nc6 {[%clk 0:01:09.3]} 24... Bxc6 {[%clk 0:00:59.5]} 25.
dxc6 {[%clk 0:01:10.2]} 25... Qxc6 {[%clk 0:00:59.4]} 26. Qd4 {[%clk 0:01:10.6]}
26... Qxc2 {[%clk 0:00:39.9]} 27. Qxf6 {[%clk 0:01:06.4]} 27... Qxb3 {[%clk
0:00:39.6]} 28. Nxf5 {[%clk 0:00:45.2]} 28... gxf5 {[%clk 0:00:36.5]} 29. Qg5+
{[%clk 0:00:45.3]} 29... Kh8 {[%clk 0:00:35.6]} 30. Qf6+ {[%clk 0:00:45.4]}
30... Kg8 {[%clk 0:00:35.8]} 31. Qg5+ {[%clk 0:00:46]} 31... Kh8 {[%clk
0:00:28.3]} 32. Qf6+ {[%clk 0:00:46]} 32... Kg8 {[%clk 0:00:28.5]} 1/2-1/2

[Event "*** SCC Grand Prix: Titled Tuesday Blitz"]
[Site "Chess.com"]
[Date "2020.08.25"]
[Round "3"]
[White "chenxiaoyuer"]
[Black "x-0414717230"]
[Result "0-1"]
[WhiteElo "2421"]
[BlackElo "2724"]
[TimeControl "180+1"]
[EndTime "10:29:05 PDT"]
[Termination "x-0414717230 won by checkmate"]

1. e4 {[%clk 0:03:00.9]} 1... c5 {[%clk 0:02:57.6]} 2. Nf3 {[%clk 0:03:00.9]}
2... d6 {[%clk 0:02:57.9]} 3. d4 {[%clk 0:03:00.9]} 3... cxd4 {[%clk 0:02:57.9]}
4. Nxd4 {[%clk 0:03:01.7]} 4... Nf6 {[%clk 0:02:58.2]} 5. Nc3 {[%clk 0:03:02.1]}
5... a6 {[%clk 0:02:58.8]} 6. Be2 {[%clk 0:03:02.2]} 6... e5 {[%clk 0:02:59.1]}
7. Nb3 {[%clk 0:03:02.5]} 7... Be7 {[%clk 0:02:59.3]} 8. O-O {[%clk 0:03:02.8]}
8... O-O {[%clk 0:02:59.6]} 9. Kh1 {[%clk 0:03:03.4]} 9... Be6 {[%clk
0:02:59.5]} 10. f4 {[%clk 0:03:03.2]} 10... exf4 {[%clk 0:03:00.4]} 11. Bxf4
{[%clk 0:03:03.9]} 11... Nc6 {[%clk 0:03:00.9]} 12. Qe1 {[%clk 0:03:04.1]} 12...
Ne5 {[%clk 0:03:01.5]} 13. Rd1 {[%clk 0:03:03.5]} 13... Nfd7 {[%clk 0:03:01.6]}
14. Nd4 {[%clk 0:03:01.7]} 14... Rc8 {[%clk 0:02:58.3]} 15. Qg3 {[%clk
0:03:00.6]} 15... Kh8 {[%clk 0:02:58.4]} 16. Nd5 {[%clk 0:01:59.1]} 16... Bxd5
{[%clk 0:02:56.2]} 17. exd5 {[%clk 0:02:00]} 17... Bf6 {[%clk 0:02:56.7]} 18. c3
{[%clk 0:01:40]} 18... Qb6 {[%clk 0:02:17]} 19. Rd2 {[%clk 0:01:27.3]} 19... Nc5
{[%clk 0:02:15.7]} 20. Bf3 {[%clk 0:01:24.4]} 20... Nc4 {[%clk 0:02:06.4]} 21.
Re2 {[%clk 0:01:18.9]} 21... Nd3 {[%clk 0:02:05.8]} 22. Bg4 {[%clk 0:00:45.7]}
22... Nxf4 {[%clk 0:01:57.9]} 23. Rxf4 {[%clk 0:00:44.6]} 23... Rce8 {[%clk
0:01:52.2]} 24. Rxe8 {[%clk 0:00:31.4]} 24... Rxe8 {[%clk 0:01:51.5]} 25. Bd7
{[%clk 0:00:21.1]} 25... Qxb2 {[%clk 0:01:38.5]} 26. h4 {[%clk 0:00:17.7]} 26...
Qc1+ {[%clk 0:01:35.6]} 27. Kh2 {[%clk 0:00:16.8]} 27... Re1 {[%clk 0:01:35.7]}
28. Kh3 {[%clk 0:00:11.6]} 28... h5 {[%clk 0:01:35.1]} 29. Nf3 {[%clk
0:00:08.5]} 29... Rh1+ {[%clk 0:01:27]} 30. Nh2 {[%clk 0:00:07.6]} 30... Be5
{[%clk 0:01:27.3]} 31. Rxc4 {[%clk 0:00:04]} 31... Bxg3 {[%clk 0:01:21.5]} 32.
Bf5 {[%clk 0:00:03]} 32... g6 {[%clk 0:01:18.3]} 33. Kxg3 {[%clk 0:00:02.9]}
33... gxf5 {[%clk 0:01:17.9]} 34. Rc8+ {[%clk 0:00:03.2]} 34... Kg7 {[%clk
0:01:17.9]} 35. Nf3 {[%clk 0:00:02.6]} 35... f4+ {[%clk 0:01:16.8]} 36. Kf2
{[%clk 0:00:02.2]} 36... Qe3# {[%clk 0:01:17.2]} 0-1

[Event "*** SCC Grand Prix: Titled Tuesday Blitz"]
[Site "Chess.com"]
[Date "2020.08.25"]
[Round "3"]
[White "GM_dmitrij"]
[Black "shnitez"]
[Result "1-0"]
[WhiteElo "2879"]
[BlackElo "2449"]
[TimeControl "180+1"]
[EndTime "10:29:11 PDT"]
[Termination "GM_dmitrij won on time"]

1. e4 {[%clk 0:03:00.9]} 1... c5 {[%clk 0:02:59.3]} 2. Nf3 {[%clk 0:03:00.9]}
2... e6 {[%clk 0:02:59.4]} 3. d4 {[%clk 0:02:59.9]} 3... cxd4 {[%clk 0:02:59.3]}
4. Nxd4 {[%clk 0:03:00.8]} 4... a6 {[%clk 0:02:59.4]} 5. c4 {[%clk 0:03:00.8]}
5... Nf6 {[%clk 0:02:58.2]} 6. Nc3 {[%clk 0:03:01.7]} 6... Qc7 {[%clk
0:02:58.2]} 7. Be2 {[%clk 0:03:01.6]} 7... b6 {[%clk 0:02:57.4]} 8. O-O {[%clk
0:03:01.2]} 8... Bb7 {[%clk 0:02:57.6]} 9. Qd3 {[%clk 0:03:01.9]} 9... Be7
{[%clk 0:02:35.6]} 10. f4 {[%clk 0:03:01]} 10... d6 {[%clk 0:02:34.2]} 11. f5
{[%clk 0:02:54.5]} 11... e5 {[%clk 0:02:11.3]} 12. Nc2 {[%clk 0:02:54.5]} 12...
Nbd7 {[%clk 0:02:05.4]} 13. Bf3 {[%clk 0:02:54.3]} 13... Rc8 {[%clk 0:02:03.7]}
14. Ne3 {[%clk 0:02:52.7]} 14... O-O {[%clk 0:02:01.2]} 15. g4 {[%clk
0:02:52.3]} 15... h6 {[%clk 0:01:44.6]} 16. h4 {[%clk 0:02:48.7]} 16... Nh7
{[%clk 0:01:29.3]} 17. Ncd5 {[%clk 0:02:24.8]} 17... Bxd5 {[%clk 0:01:24.3]} 18.
Nxd5 {[%clk 0:02:25.7]} 18... Qd8 {[%clk 0:01:22.7]} 19. Nxe7+ {[%clk
0:02:00.7]} 19... Qxe7 {[%clk 0:01:21.7]} 20. Kg2 {[%clk 0:02:01.6]} 20... Qxh4
{[%clk 0:00:59.9]} 21. g5 {[%clk 0:02:01.1]} 21... Nc5 {[%clk 0:00:45]} 22. Qe2
{[%clk 0:01:46.1]} 22... Nxg5 {[%clk 0:00:21.8]} 23. Rh1 {[%clk 0:01:45.7]}
23... Nxf3 {[%clk 0:00:21.3]} 24. Rxh4 {[%clk 0:01:45.9]} 24... Nxh4+ {[%clk
0:00:22.2]} 25. Kh3 {[%clk 0:01:44.9]} 25... g5 {[%clk 0:00:22.1]} 26. Bd2
{[%clk 0:01:23]} 26... f6 {[%clk 0:00:17.2]} 27. Rg1 {[%clk 0:01:22.6]} 27...
Kh7 {[%clk 0:00:15.2]} 28. Be1 {[%clk 0:01:22.1]} 28... Rg8 {[%clk 0:00:12.1]}
29. Qh5 {[%clk 0:01:21.8]} 29... Nxe4 {[%clk 0:00:10.7]} 30. Bxh4 {[%clk
0:01:22]} 30... gxh4 {[%clk 0:00:08.7]} 31. Rg6 {[%clk 0:01:15.7]} 31... Ng5+
{[%clk 0:00:06.7]} 32. Kxh4 {[%clk 0:01:13.4]} 32... Rxg6 {[%clk 0:00:05.2]} 33.
Qxg6+ {[%clk 0:01:14.3]} 33... Kh8 {[%clk 0:00:04.9]} 34. Qxf6+ {[%clk
0:01:14.8]} 34... Kg8 {[%clk 0:00:02.8]} 35. Qg6+ {[%clk 0:01:14.6]} 1-0

[Event "*** SCC Grand Prix: Titled Tuesday Blitz"]
[Site "Chess.com"]
[Date "2020.08.25"]
[Round "3"]
[White "barbara25"]
[Black "karinachess1"]
[Result "1-0"]
[WhiteElo "2279"]
[BlackElo "2487"]
[TimeControl "180+1"]
[EndTime "10:29:13 PDT"]
[Termination "barbara25 won on time"]

1. e4 {[%clk 0:03:00.8]} 1... c5 {[%clk 0:02:56.3]} 2. Nf3 {[%clk 0:03:00.4]}
2... e6 {[%clk 0:02:55.5]} 3. g3 {[%clk 0:03:00]} 3... Nc6 {[%clk 0:02:52.5]} 4.
Bg2 {[%clk 0:02:59.3]} 4... Qc7 {[%clk 0:02:52.2]} 5. O-O {[%clk 0:02:57.1]}
5... Nf6 {[%clk 0:02:52.1]} 6. Re1 {[%clk 0:02:53.3]} 6... d6 {[%clk 0:02:44.3]}
7. c3 {[%clk 0:02:52.6]} 7... Be7 {[%clk 0:02:31.9]} 8. d4 {[%clk 0:02:51.9]}
8... cxd4 {[%clk 0:02:30.8]} 9. cxd4 {[%clk 0:02:51.7]} 9... O-O {[%clk
0:02:20.8]} 10. Nc3 {[%clk 0:02:51.5]} 10... a6 {[%clk 0:02:16.5]} 11. a3 {[%clk
0:02:47.2]} 11... Rd8 {[%clk 0:02:01.7]} 12. Bg5 {[%clk 0:02:46.5]} 12... h6
{[%clk 0:01:59.8]} 13. Be3 {[%clk 0:02:45.8]} 13... d5 {[%clk 0:01:46.5]} 14. e5
{[%clk 0:02:44.5]} 14... Ne4 {[%clk 0:01:45.8]} 15. Rc1 {[%clk 0:02:41.7]} 15...
Nxc3 {[%clk 0:01:40]} 16. Rxc3 {[%clk 0:02:40.7]} 16... Bd7 {[%clk 0:01:40.1]}
17. Qd2 {[%clk 0:02:24.5]} 17... Bf8 {[%clk 0:01:39.7]} 18. g4 {[%clk 0:02:18]}
18... Be8 {[%clk 0:01:24]} 19. g5 {[%clk 0:02:16.8]} 19... h5 {[%clk 0:01:21.4]}
20. g6 {[%clk 0:02:05.4]} 20... fxg6 {[%clk 0:01:13.6]} 21. Ng5 {[%clk
0:02:04.9]} 21... Qe7 {[%clk 0:01:11.2]} 22. Bh3 {[%clk 0:02:04.2]} 22... Bf7
{[%clk 0:00:58.9]} 23. Nxf7 {[%clk 0:02:03.5]} 23... Qxf7 {[%clk 0:00:59.8]} 24.
Bg5 {[%clk 0:02:03]} 24... Re8 {[%clk 0:00:58.4]} 25. Ree3 {[%clk 0:01:58.4]}
25... Rac8 {[%clk 0:00:37.9]} 26. Rf3 {[%clk 0:01:57.9]} 26... Qd7 {[%clk
0:00:37.9]} 27. Qd3 {[%clk 0:01:57.6]} 27... Ne7 {[%clk 0:00:34.1]} 28. Bxe7
{[%clk 0:01:54.5]} 28... Rxc3 {[%clk 0:00:25.1]} 29. bxc3 {[%clk 0:01:53]} 29...
Qxe7 {[%clk 0:00:24.8]} 30. Qxg6 {[%clk 0:01:52.2]} 30... h4 {[%clk 0:00:22.3]}
31. Bg4 {[%clk 0:01:48.1]} 31... b5 {[%clk 0:00:16.9]} 32. Bh5 {[%clk
0:01:47.4]} 32... Rc8 {[%clk 0:00:15.2]} 33. Rf7 {[%clk 0:01:44.7]} 33... Qxa3
{[%clk 0:00:11.5]} 34. Qxe6 {[%clk 0:01:34.4]} 34... Qc1+ {[%clk 0:00:11.6]} 35.
Kg2 {[%clk 0:01:32.1]} 35... Qg5+ {[%clk 0:00:12.1]} 36. Bg4 {[%clk 0:01:29.5]}
36... Rxc3 {[%clk 0:00:10.5]} 37. Rf5+ {[%clk 0:01:27.4]} 37... Kh7 {[%clk
0:00:01.2]} 38. Rxg5 {[%clk 0:01:26.7]} 1-0